fUST/lending_fUST_20250822
["ID","MTS","AMOUNT","RATE_DAILY","PERIOD"]
[380490706,1755793848987,-480.0,0.00020029,2]
[380490708,1755793848997,-1147.5,0.00020029,2]
[380490710,1755793849006,-489.09,0.00020029,2]
[380490711,1755793849028,-1481.81,0.00020029,2]
[380490713,1755793849038,-917.6,0.00020029,2]
[380490715,1755793849048,-480.0,0.00020029,2]
[380490717,1755793849057,-480.0,0.00020029,2]
[380490720,1755793849067,-480.0,0.00020029,2]
[380490722,1755793849076,-480.0,0.00020029,2]
[380490723,1755793849086,-480.0,0.00020029,2]
[380490725,1755793849096,-1032.03,0.00020029,2]
[380490727,1755793849106,-1127.63,0.00020029,2]
[380490729,1755793849116,-1329.97,0.00020029,2]
[380490731,1755793849125,-480.0,0.00020029,2]
[380490734,1755793849135,-480.0,0.00020029,2]
[380490735,1755793849144,-480.0,0.00020029,2]
[380490738,1755793849154,-480.0,0.00020029,2]
[380490740,1755793849164,-480.0,0.00020029,2]
[380490742,1755793849173,-480.0,0.00020029,2]
[380490743,1755793849183,-480.0,0.00020029,2]
[380490745,1755793849192,-426.56388493,0.00020029,2]
[380490747,1755793849201,-480.0,0.00020029,2]
[380490749,1755793849210,-480.0,0.00020029,2]
[380490751,1755793849219,-480.0,0.00020029,2]
[380490753,1755793849228,-1110.3,0.00020029,2]
[380490755,1755793849237,-480.0,0.00020029,2]
[380490757,1755793849247,-440.0,0.00020029,2]
[380490759,1755793849257,-647.07,0.00020029,2]
[380490761,1755793849267,-581.49,0.00020029,2]
[380490763,1755793849276,-480.0,0.00020029,2]
[380490765,1755793849286,-868.9133255,0.00020063,2]
[380490767,1755793849295,-2524.82941417,0.00020068,2]
[380490769,1755793849304,-500.0,0.00020073,2]
[380490771,1755793849314,-500.0,0.00020073,2]
[380490773,1755793849323,-500.0,0.00020073,2]
[380490775,1755793849335,-500.51260226,0.00020073,2]
[380490777,1755793849347,-500.0,0.00020073,2]
[380490779,1755793849356,-500.64224986,0.00020073,2]
[380490781,1755793849366,-510.97540017,0.00020073,2]
[380490783,1755793849376,-500.0,0.00020073,2]
[380490785,1755793849385,-500.0,0.00020073,2]
[380490787,1755793849396,-500.0,0.00020073,2]
[380490790,1755793849406,-500.0,0.00020073,2]
[380490792,1755793849416,-500.0,0.00020073,2]
[380490794,1755793849426,-500.22444816,0.00020073,2]
[380490796,1755793849435,-500.0,0.00020073,2]
[380490798,1755793849445,-500.0,0.00020073,2]
[380490800,1755793849456,-331.54512723,0.00020073,2]
[380490802,1755793849465,-500.0,0.00020073,2]
[380490804,1755793849475,-500.0,0.00020073,2]
[380490806,1755793849484,-500.0,0.00020073,2]
[380490808,1755793849494,-500.0,0.00020073,2]
[380490810,1755793849504,-502.43706856,0.00020073,2]
[380490812,1755793849513,-500.0,0.00020073,2]
[380490814,1755793849523,-500.0,0.00020073,2]
[380490816,1755793849532,-500.0,0.00020073,2]
[380490818,1755793849542,-501.35145141,0.00020073,2]
[380490820,1755793849552,-212.64944664,0.00020073,2]
[380490822,1755793849561,-161.11718925,0.00020073,2]
[380490824,1755793849570,-500.0,0.00020073,2]
[380490826,1755793849580,-503.04797693,0.00020073,2]
[380490828,1755793849590,-500.0,0.00020073,2]
[380490830,1755793849603,-151.0,0.000201,3]
[380490832,1755793849612,-151.0,0.000201,3]
[380490834,1755793849621,-2618.2481025,0.00020123,2]
[380490836,1755793849631,-3973.07299864,0.00020126,2]
[380490838,1755793849640,-480.0,0.00020127,2]
[380490840,1755793849649,-490.88,0.00020127,2]
[380490842,1755793849658,-480.0,0.00020127,2]
[380490844,1755793849667,-1222.81,0.00020127,2]
[380490846,1755793849680,-480.0,0.00020127,2]
[380490848,1755793849689,-480.0,0.00020127,2]
[380490850,1755793849699,-954.11,0.00020127,2]
[380490852,1755793849708,-480.0,0.00020127,2]
[380490853,1755793849718,-970.38,0.00020127,2]
[380490856,1755793849728,-480.0,0.00020127,2]
[380490858,1755793849738,-809.19,0.00020127,2]
[380490860,1755793849748,-1294.05,0.00020127,2]
[380490862,1755793849757,-480.0,0.00020127,2]
[380490864,1755793849766,-480.0,0.00020127,2]
[380490865,1755793849775,-480.0,0.00020127,2]
[380490867,1755793849785,-848.64,0.00020127,2]
[380490869,1755793849794,-385.19892108,0.00020127,2]
[380490871,1755793849804,-480.0,0.00020127,2]
[380490874,1755793849813,-475.01221124,0.00020127,2]
[380490875,1755793849823,-480.0,0.00020127,2]
[380490878,1755793849832,-480.0,0.00020127,2]
[380490879,1755793849845,-530.44,0.00020127,2]
[380490882,1755793849854,-656.44,0.00020127,2]
[380490884,1755793849864,-2129.38,0.00020127,2]
[380490886,1755793849874,-480.0,0.00020127,2]
[380490887,1755793849883,-537.96,0.00020127,2]
[380490890,1755793849893,-570.5,0.00020127,2]
[380490891,1755793849902,-565.86,0.00020127,2]
[380490894,1755793849912,-1067.45,0.00020127,2]
[380490896,1755793849921,-625.07,0.00020127,2]
[380490897,1755793849930,-748.55,0.00020127,2]
[380490900,1755793849940,-775.81,0.00020127,2]
[380490903,1755793849960,-480.0,0.00020127,2]
[380490905,1755793849969,-480.0,0.00020127,2]
[380490907,1755793849979,-480.0,0.00020128,2]
[380490909,1755793849987,-480.0,0.00020128,2]
[380490910,1755793849998,-480.0,0.00020128,2]
[380490913,1755793850007,-155.84922566,0.00020128,2]
[380490915,1755793850017,-480.0,0.00020128,2]
[380490916,1755793850026,-609.51,0.00020128,2]
[380490919,1755793850035,-480.0,0.00020128,2]
[380490921,1755793850045,-480.0,0.00020128,2]
[380490922,1755793850054,-480.0,0.00020128,2]
[380490924,1755793850063,-734.27,0.00020128,2]
[380490926,1755793850077,-480.0,0.00020128,2]
[380490928,1755793850087,-480.0,0.00020128,2]
[380490930,1755793850097,-499.38,0.00020128,2]
[380490932,1755793850107,-480.0,0.00020128,2]
[380490935,1755793850116,-480.0,0.00020128,2]
[380490937,1755793850126,-761.14,0.00020128,2]
[380490939,1755793850138,-480.0,0.00020128,2]
[380490941,1755793850147,-935.55,0.00020128,2]
[380490943,1755793850156,-151.0,0.00020128,2]
[380490945,1755793850166,-480.0,0.00020128,2]
[380490947,1755793850175,-480.0,0.00020128,2]
[380490949,1755793850184,-615.54,0.00020128,2]
[380490951,1755793850194,-460.0,0.00020128,2]
[380490953,1755793850203,-480.0,0.00020128,2]
[380490955,1755793850213,-480.0,0.00020128,2]
[380490957,1755793850223,-480.0,0.00020128,2]
[380490959,1755793850232,-480.0,0.00020128,2]
[380490961,1755793850242,-480.0,0.00020128,2]
[380490963,1755793850252,-480.0,0.00020128,2]
[380490965,1755793850263,-480.0,0.00020128,2]
[380490967,1755793850273,-480.0,0.00020128,2]
[380490969,1755793850283,-480.0,0.00020128,2]
[380490971,1755793850293,-480.0,0.00020128,2]
[380490973,1755793850303,-480.0,0.00020128,2]
[380490975,1755793850312,-151.0,0.00020128,2]
[380490977,1755793850321,-208.330593,0.00020128,2]
[380490979,1755793850331,-151.0,0.00020128,2]
[380490981,1755793850340,-151.0,0.00020128,2]
[380490983,1755793850351,-151.0,0.00020128,2]
[380490985,1755793850360,-151.0,0.00020128,2]
[380490987,1755793850369,-151.0,0.00020128,2]
[380490989,1755793850379,-480.0,0.00020128,2]
[380490990,1755793850388,-151.0,0.00020128,2]
[380490993,1755793850400,-461.78100396,0.00020128,2]
[380490995,1755793850410,-151.0,0.00020128,2]
[380490997,1755793850419,-610.79517868,0.00020128,2]
[380490999,1755793850428,-480.0,0.00020128,2]
[380491001,1755793850439,-151.0,0.00020128,2]
[380491003,1755793850448,-151.0,0.00020128,2]
[380491005,1755793850458,-151.0,0.00020128,2]
[380491007,1755793850468,-151.0,0.00020128,2]
[380491009,1755793850477,-151.0,0.00020128,2]
[380491011,1755793850486,-151.0,0.00020128,2]
[380491013,1755793850495,-647.94,0.0002013,2]
[380491015,1755793850504,-480.0,0.0002013,2]
[380491017,1755793850515,-480.0,0.0002013,2]
[380491019,1755793850524,-495.43,0.0002013,2]
[380491021,1755793850534,-609.39,0.0002013,2]
[380491023,1755793850544,-525.59,0.0002013,2]
[380491024,1755793850553,-2715.12328229,0.00020178,2]
[380491026,1755793850563,-304.186088,0.00020187,2]
[380491028,1755793850572,-151.0,0.000202,3]
[380491030,1755793850581,-151.0,0.000202,3]
[380491032,1755793850591,-12690.45384448,0.000202,3]
[380491035,1755793850603,-215.86710461,0.000202,3]
[380491037,1755793850612,-868.9133255,0.000202,2]
[380491038,1755793850621,-2815.58284374,0.00020233,2]
[380491040,1755793850631,-1306.0027209,0.00020274,2]
[380491043,1755793850641,-460.0,0.00020287,2]
[380491045,1755793850650,-847.2,0.00020287,2]
[380491047,1755793850660,-480.0,0.00020288,2]
[380491049,1755793850670,-885.93,0.00020288,2]
[380491050,1755793850686,-1303.38,0.00020288,2]
[380491053,1755793850696,-1630.78,0.00020288,2]
[380491054,1755793850705,-1376.59,0.00020288,2]
[380491056,1755793850715,-4625.68,0.00020288,2]
[380491058,1755793850727,-2919.75940895,0.00020288,2]
[380491061,1755793850737,-480.0,0.00020289,2]
[380491063,1755793850747,-713.44,0.00020289,2]
[380491064,1755793850759,-480.0,0.00020289,2]
[380491066,1755793850769,-480.0,0.00020289,2]
[380491069,1755793850778,-500.0,0.0002029,2]
[380491071,1755793850788,-480.0,0.0002029,2]
[380491072,1755793850798,-480.0,0.0002029,2]
[380491074,1755793850807,-8183.36,0.0002029,2]
[380491076,1755793850816,-480.0,0.0002029,2]
[380491079,1755793850828,-480.0,0.0002029,2]
[380491081,1755793850837,-4974.87,0.0002029,2]
[380491083,1755793850848,-787.88,0.0002029,2]
[380491085,1755793850858,-1558.67,0.0002029,2]
[380491087,1755793850867,-2183.5,0.0002029,2]
[380491089,1755793850877,-676.07,0.0002029,2]
[380491091,1755793850886,-6019.64,0.0002029,2]
[380491093,1755793850895,-480.0,0.0002029,2]
[380491094,1755793850905,-480.0,0.0002029,2]
[380491096,1755793850915,-444.94357506,0.0002029,2]
[380491098,1755793850924,-4501.5,0.0002029,2]
[380491100,1755793850933,-1515.21,0.0002029,2]
[380491102,1755793850943,-3691.74,0.0002029,2]
[380491104,1755793850952,-1893.89,0.0002029,2]
[380491106,1755793850961,-2262.53,0.0002029,2]
[380491108,1755793850970,-4805.14,0.0002029,2]
[380491110,1755793850979,-480.0,0.00020291,2]
[380491112,1755793850988,-961.32,0.00020291,2]
[380491114,1755793850997,-480.0,0.00020291,2]
[380491116,1755793851006,-584.87,0.00020291,2]
[380491118,1755793851015,-557.34,0.00020291,2]
[380491120,1755793851025,-480.0,0.00020291,2]
[380491122,1755793851034,-1685.13,0.00020291,2]
[380491124,1755793851043,-2419.76,0.00020291,2]
[380491126,1755793851052,-1392.1,0.00020291,2]
[380491128,1755793851061,-593.41,0.00020291,2]
[380491130,1755793851070,-151.0,0.00020291,2]
[380491132,1755793851079,-151.0,0.00020291,2]
[380491133,1755793851088,-480.0,0.00020291,2]
[380491135,1755793851099,-151.0,0.00020291,2]
[380491137,1755793851108,-151.0,0.00020291,2]
[380491139,1755793851116,-151.0,0.00020291,2]
[380491141,1755793851126,-151.0,0.00020291,2]
[380491143,1755793851136,-151.0,0.00020291,2]
[380491145,1755793851144,-151.0,0.00020291,2]
[380491147,1755793851154,-151.0,0.00020291,2]
[380491149,1755793851163,-715.97,0.00020291,2]
[380491150,1755793851173,-151.0,0.00020291,2]
[380491151,1755793851182,-1011.73,0.00020291,2]
[380491152,1755793851192,-151.0,0.00020291,2]
[380491153,1755793851201,-151.0,0.00020291,2]
[380491154,1755793851211,-167.027241,0.00020291,2]
[380491155,1755793851221,-167.027241,0.00020291,2]
[380491156,1755793851230,-167.027241,0.00020291,2]
[380491157,1755793851240,-167.027241,0.00020291,2]
[380491158,1755793851252,-151.512819,0.00020291,2]
[380491159,1755793851261,-480.0,0.00020291,2]
[380491160,1755793851270,-480.0,0.00020291,2]
[380491161,1755793851280,-1211.16,0.00020291,2]
[380491162,1755793851289,-1359.15,0.00020291,2]
[380491163,1755793851299,-480.0,0.00020291,2]
[380491164,1755793851309,-480.0,0.00020298,2]
[380491165,1755793851318,-480.0,0.00020298,2]
[380491166,1755793851328,-785.97,0.00020298,2]
[380491167,1755793851337,-151.0,0.00020298,2]
[380491169,1755793851349,-151.0,0.00020298,2]
[380491170,1755793851358,-572.46,0.00020298,2]
[380491172,1755793851368,-480.0,0.00020298,2]
[380491174,1755793851378,-151.0,0.00020298,2]
[380491176,1755793851387,-151.0,0.00020298,2]
[380491178,1755793851397,-151.0,0.00020298,2]
[380491180,1755793851406,-151.0,0.00020298,2]
[380491182,1755793851416,-151.0,0.00020298,2]
[380491184,1755793851426,-151.0,0.00020298,2]
[380491186,1755793851437,-480.0,0.00020298,2]
[380491188,1755793851447,-865.58,0.00020298,2]
[380491190,1755793851458,-949.12,0.00020298,2]
[380491192,1755793851467,-687.58,0.00020298,2]
[380491194,1755793851477,-541.27,0.00020298,2]
[380491196,1755793851487,-480.0,0.00020298,2]
[380491198,1755793851496,-480.0,0.00020298,2]
[380491200,1755793851506,-480.0,0.00020298,2]
[380491202,1755793851515,-800.21,0.00020298,2]
[380491204,1755793851524,-736.42,0.00020298,2]
[380491206,1755793851533,-480.0,0.00020298,2]
[380491208,1755793851542,-589.62,0.00020298,2]
[380491210,1755793851552,-2460.51,0.00020298,2]
[380491211,1755793851561,-480.0,0.00020298,2]
[380491214,1755793851572,-480.0,0.00020298,2]
[380491216,1755793851582,-2283.27,0.00020298,2]
[380491217,1755793851592,-1078.41,0.00020298,2]
[380491219,1755793851603,-890.16,0.00020298,2]
[380491221,1755793851612,-2583.32,0.00020298,2]
[380491223,1755793851622,-3620.96,0.00020298,2]
[380491225,1755793851631,-501.11,0.00020298,2]
[380491227,1755793851642,-634.26,0.00020298,2]
[380491229,1755793851651,-480.0,0.00020298,2]
[380491231,1755793851661,-480.0,0.00020298,2]
[380491233,1755793851672,-500.0,0.00020298,2]
[380491235,1755793851685,-396.0,0.00020299,2]
[380491237,1755793851696,-588.0,0.00020299,2]
[380491239,1755793851704,-500.0,0.00020299,2]
[380491241,1755793851714,-151.0,0.00020299,2]
[380491243,1755793851725,-500.0,0.00020299,2]
[380491245,1755793851734,-264.62832098,0.00020299,2]
[380491247,1755793851743,-210.50940212,0.00020299,2]
[380491249,1755793851753,-151.0,0.00020299,2]
[380491251,1755793851762,-190.89222303,0.00020299,2]
[380491252,1755793851772,-151.0,0.00020299,2]
[380491254,1755793851782,-151.0,0.00020299,2]
[380491256,1755793851791,-151.0,0.00020299,2]
[380491258,1755793851801,-500.0,0.00020299,2]
[380491260,1755793851810,-151.0,0.00020299,2]
[380491262,1755793851819,-180.43841876,0.00020299,2]
[380491264,1755793851828,-151.0,0.00020299,2]
[380491266,1755793851838,-151.0,0.00020299,2]
[380491268,1755793851850,-151.0,0.00020299,2]
[380491270,1755793851860,-500.0,0.00020299,2]
[380491272,1755793851869,-151.0,0.00020299,2]
[380491274,1755793851879,-480.0,0.00020299,2]
[380491276,1755793851888,-1334.31,0.00020299,2]
[380491278,1755793851898,-480.0,0.00020299,2]
[380491280,1755793851907,-426.670908,0.00020299,2]
[380491282,1755793851916,-480.0,0.00020299,2]
[380491284,1755793851925,-480.0,0.00020299,2]
[380491286,1755793851935,-778.46,0.00020299,2]
[380491288,1755793851945,-389.16119519,0.00020299,2]
[380491290,1755793851954,-551.1,0.00020299,2]
[380491292,1755793851964,-534.85,0.00020299,2]
[380491293,1755793851973,-480.0,0.00020299,2]
[380491295,1755793851983,-731.52,0.00020299,2]
[380491296,1755793851992,-480.0,0.00020299,2]
[380491298,1755793852002,-480.0,0.00020299,2]
[380491300,1755793852011,-480.0,0.00020299,2]
[380491304,1755793852060,-701.15,0.00020299,2]
[380491305,1755793852069,-584.9,0.00020299,2]
[380491307,1755793852079,-456.87743463,0.00020299,2]
[380491309,1755793852089,-480.0,0.00020299,2]
[380491311,1755793852101,-480.0,0.00020299,2]
[380491313,1755793852110,-480.0,0.00020299,2]
[380491315,1755793852119,-1878.08,0.00020299,2]
[380491317,1755793852129,-460.0,0.00020299,2]
[380491319,1755793852138,-151.0,0.00020299,2]
[380491321,1755793852148,-777.48,0.00020299,2]
[380491323,1755793852157,-480.0,0.00020299,2]
[380491325,1755793852167,-735.91,0.00020299,2]
[380491340,1755793852317,-480.0,0.00020299,2]
[380491342,1755793852327,-625.95,0.00020299,2]
[380491344,1755793852339,-480.0,0.00020299,2]
[380491346,1755793852350,-1562.58,0.00020299,2]
[380491348,1755793852360,-480.0,0.00020299,2]
[380491350,1755793852371,-480.0,0.00020299,2]
[380491352,1755793852380,-1994.29,0.00020299,2]
[380491354,1755793852389,-480.0,0.00020299,2]
[380491356,1755793852399,-917.99,0.00020299,2]
[380491358,1755793852408,-569.16,0.00020299,2]
[380491360,1755793852417,-1189.11,0.00020299,2]
[380491362,1755793852427,-480.36,0.00020299,2]
[380491364,1755793852437,-793.24,0.00020299,2]
[380491366,1755793852446,-1334.04,0.00020299,2]
[380491368,1755793852455,-480.0,0.00020299,2]
[380491369,1755793852465,-2174.47,0.00020299,2]
[380491371,1755793852474,-1803.92,0.00020299,2]
[380491373,1755793852483,-480.0,0.00020299,2]
[380491375,1755793852492,-1005.56,0.00020299,2]
[380491377,1755793852502,-2817.07,0.00020299,2]
[380491379,1755793852513,-480.0,0.00020299,2]
[380491381,1755793852522,-4813.06,0.00020299,2]
[380491383,1755793852532,-480.0,0.00020299,2]
[380491385,1755793852542,-500.25,0.00020299,2]
[380491387,1755793852551,-151.0,0.000203,2]
[380491389,1755793852560,-151.0,0.000203,2]
[380491391,1755793852569,-1926.7,0.000203,2]
[380491392,1755793852579,-1270.78,0.000203,2]
[380491394,1755793852588,-480.0,0.000203,2]
[380491396,1755793852598,-480.0,0.000203,2]
[380491398,1755793852607,-480.0,0.000203,2]
[380491400,1755793852617,-480.0,0.000203,2]
[380491402,1755793852626,-480.0,0.000203,2]
[380491403,1755793852636,-480.0,0.000203,2]
[380491405,1755793852646,-1103.29,0.000203,2]
[380491407,1755793852656,-592.33,0.000203,2]
[380491409,1755793852665,-1835.76,0.000203,2]
[380491411,1755793852675,-489.8,0.000203,2]
[380491413,1755793852687,-497.86,0.000203,2]
[380491415,1755793852697,-480.0,0.000203,2]
[380491417,1755793852707,-480.0,0.000203,2]
[380491419,1755793852716,-752.88,0.000203,2]
[380491420,1755793852726,-151.0,0.000203,2]
[380491422,1755793852735,-151.0,0.000203,2]
[380491424,1755793852745,-151.0,0.000203,2]
[380491426,1755793852756,-581.48,0.000203,2]
[380491428,1755793852765,-578.83,0.000203,2]
[380491430,1755793852774,-724.18,0.000203,2]
[380491432,1755793852785,-151.0,0.000203,2]
[380491434,1755793852795,-2279.76,0.000203,2]
[380491436,1755793852804,-1676.15,0.000203,2]
[380491438,1755793852813,-480.0,0.000203,2]
[380491439,1755793852823,-1026.38,0.000203,2]
[380491441,1755793852832,-480.0,0.000203,2]
[380491443,1755793852841,-953.5,0.000203,2]
[380491445,1755793852851,-796.2,0.000203,2]
[380491447,1755793852860,-151.0,0.000203,2]
[380491449,1755793852869,-968.87,0.000203,2]
[380491451,1755793852879,-480.0,0.000203,2]
[380491453,1755793852888,-480.0,0.000203,2]
[380491454,1755793852897,-480.0,0.000203,2]
[380491456,1755793852906,-711.95,0.000203,2]
[380491458,1755793852915,-480.0,0.000203,2]
[380491460,1755793852925,-2505.13,0.000203,2]
[380491462,1755793852934,-1061.62,0.000203,2]
[380491464,1755793852943,-2176.19,0.000203,2]
[380491466,1755793852952,-480.0,0.000203,2]
[380491468,1755793852961,-545.58,0.000203,2]
[380491470,1755793852971,-2313.11,0.000203,2]
[380491471,1755793852980,-480.0,0.000203,2]
[380491473,1755793852989,-4681.9,0.000203,2]
[380491475,1755793852998,-480.0,0.000203,2]
[380491477,1755793853007,-913.59,0.000203,2]
[380491479,1755793853017,-356.27951234,0.000203,2]
[380491481,1755793853026,-919.48,0.000203,2]
[380491483,1755793853036,-480.0,0.000203,2]
[380491485,1755793853045,-480.0,0.000203,2]
[380491487,1755793853055,-15233.29,0.000203,2]
[380491488,1755793853065,-1968.3,0.000203,2]
[380491490,1755793853075,-4444.0,0.000203,2]
[380491492,1755793853085,-753.72,0.000203,2]
[380491494,1755793853094,-875.12,0.000203,2]
[380491496,1755793853105,-714.42,0.000203,2]
[380491498,1755793853115,-757.11,0.000203,2]
[380491500,1755793853125,-4009.41,0.000203,2]
[380491502,1755793853134,-2806.14,0.000203,2]
[380491504,1755793853143,-525.33,0.000203,2]
[380491506,1755793853181,-14219.45,0.000203,2]
[380491508,1755793853190,-151.0,0.000203,2]
[380491510,1755793853200,-151.0,0.000203,2]
[380491512,1755793853210,-151.744069,0.000203,2]
[380491514,1755793853219,-10658.42,0.000203,2]
[380491516,1755793853229,-974.07,0.000203,2]
[380491518,1755793853238,-151.0,0.000203,2]
[380491520,1755793853247,-1945.57,0.000203,2]
[380491522,1755793853257,-1179.28,0.000203,2]
[380491524,1755793853266,-151.0,0.000203,2]
[380491526,1755793853275,-151.0,0.000203,2]
[380491528,1755793853284,-151.0,0.000203,2]
[380491530,1755793853294,-943.64,0.000203,2]
[380491531,1755793853303,-629.62,0.000203,2]
[380491533,1755793853312,-480.0,0.000203,2]
[380491535,1755793853321,-480.0,0.000203,2]
[380491537,1755793853330,-151.0,0.000203,2]
[380491539,1755793853340,-480.0,0.000203,2]
[380491541,1755793853351,-2012.41,0.000203,2]
[380491543,1755793853360,-480.0,0.000203,2]
[380491545,1755793853369,-1084.8,0.000203,2]
[380491547,1755793853379,-151.0,0.000203,2]
[380491549,1755793853389,-151.0,0.000203,2]
[380491551,1755793853399,-6391.99,0.000203,2]
[380491553,1755793853409,-151.0,0.000203,2]
[380491555,1755793853418,-155.604276,0.000203,2]
[380491557,1755793853427,-151.0,0.000203,2]
[380491559,1755793853437,-151.0,0.00020301,2]
[380491560,1755793853447,-151.0,0.00020301,2]
[380491562,1755793853456,-151.0,0.00020301,2]
[380491564,1755793853466,-151.0,0.00020301,2]
[380491566,1755793853475,-151.0,0.00020301,2]
[380491568,1755793853485,-253.951578,0.00020301,2]
[380491570,1755793853495,-480.0,0.00020303,2]
[380491572,1755793853504,-168.81026602,0.00020303,2]
[380491574,1755793853514,-904.86,0.00020303,2]
[380491576,1755793853524,-527.81,0.00020303,2]
[380491578,1755793853534,-480.0,0.00020303,2]
[380491580,1755793853544,-480.0,0.00020303,2]
[380491582,1755793853554,-480.0,0.00020303,2]
[380491584,1755793853564,-480.0,0.00020303,2]
[380491586,1755793853573,-480.0,0.00020303,2]
[380491588,1755793853584,-480.0,0.00020303,2]
[380491590,1755793853593,-1472.47,0.00020303,2]
[380491592,1755793853603,-925.62,0.00020303,2]
[380491594,1755793853613,-864.84,0.00020303,2]
[380491596,1755793853623,-480.0,0.00020303,2]
[380491597,1755793853632,-480.0,0.00020303,2]
[380491598,1755793853641,-480.0,0.00020303,2]
[380491599,1755793853649,-480.0,0.00020303,2]
[380491600,1755793853659,-480.0,0.00020303,2]
[380491601,1755793853668,-480.0,0.00020303,2]
[380491602,1755793853678,-663.39,0.00020303,2]
[380491603,1755793853688,-480.0,0.00020303,2]
[380491604,1755793853697,-480.0,0.00020303,2]
[380491605,1755793853706,-480.0,0.00020303,2]
[380491606,1755793853716,-688.2,0.00020303,2]
[380491607,1755793853726,-480.0,0.00020303,2]
[380491608,1755793853734,-711.04,0.00020303,2]
[380491609,1755793853743,-1174.9,0.00020303,2]
[380491610,1755793853753,-480.0,0.00020303,2]
[380491611,1755793853763,-480.0,0.00020303,2]
[380491612,1755793853772,-547.24,0.00020303,2]
[380491613,1755793853781,-151.0,0.00020303,2]
[380491614,1755793853790,-480.0,0.00020303,2]
[380491615,1755793853799,-480.0,0.00020303,2]
[380491616,1755793853808,-151.0,0.00020303,2]
[380491617,1755793853817,-151.0,0.00020303,2]
[380491618,1755793853827,-772.45,0.00020303,2]
[380491619,1755793853837,-480.0,0.00020303,2]
[380491620,1755793853846,-380.0,0.00020303,2]
[380491621,1755793853856,-480.0,0.00020303,2]
[380491622,1755793853865,-151.0,0.00020303,2]
[380491623,1755793853874,-1637.38,0.00020303,2]
[380491624,1755793853883,-151.0,0.00020303,2]
[380491625,1755793853892,-480.0,0.00020303,2]
[380491626,1755793853901,-480.0,0.00020303,2]
[380491627,1755793853911,-1000.0,0.00020303,2]
[380491628,1755793853920,-1000.0,0.00020303,2]
[380491629,1755793853929,-827.926515,0.00020303,2]
[380491630,1755793853938,-948.53,0.00020303,2]
[380491631,1755793853948,-480.0,0.00020303,2]
[380491632,1755793853957,-151.0,0.00020303,2]
[380491633,1755793853966,-480.0,0.00020303,2]
[380491634,1755793853975,-497.54,0.00020303,2]
[380491635,1755793853985,-480.0,0.00020303,2]
[380491636,1755793853994,-1147.5,0.00020303,2]
[380491637,1755793854004,-489.09,0.00020303,2]
[380491638,1755793854012,-1481.81,0.00020303,2]
[380491639,1755793854022,-151.0,0.00020303,2]
[380491640,1755793854031,-151.0,0.00020303,2]